Cogmind - Beta 17 @@@ ROGUE MODE // 2026.07.23 @ 19:39:20 Player: Suffixing Result: Destroyed by Autobeam Turret with Autobeam Performance ------------- Evolutions (0) 0 Regions Visited (2) 400 Robots Destroyed (22) 110 Value Destroyed (548) 548 Prototype IDs (17) 340 Alien Tech Used (0) 0 Bonus (5450) 5450 TOTAL SCORE: 6848 Bonus ------- Prayed to X0-1V1 5000 Major X0-1V1 Interference 450 Cogmind --------- Core Integrity 0/250 Matter 267/300 Energy 1550/1550 System Corruption 8% Temperature Cool (18) Movement Rolling (150) Ox4 Location -10/Subcaves Parts ------- > --- POWER (1) -------- Ion Engine > --- PROPULSION (3) --- Light Treads Light Treads Subdweller Monowheel > --- UTILITY (2) ------ Huge Storage Unit X0-1V1's Piety Tracker > --- WEAPON (2) ------- (None) > --- INVENTORY (25) --- Subdweller Power Source Light Nuclear Core Wheel Large Storage Unit Subdweller Optics Subdweller Optics Subdweller Optics Light Armor Plating Light Armor Plating Light Armor Plating Scrap Shield Self-contained Transmogrifier EM Shotgun EM Shotgun EM Shotgun EM Shotgun Subdweller Beam Cannon Assault Rifle Assault Rifle Peak State ------------ > --- POWER ------------ Ion Engine > --- PROPULSION ------- Light Treads Light Treads Light Treads > --- UTILITY ---------- Huge Storage Unit X0-1V1's Piety Tracker > --- WEAPON ----------- Heavy EM Pulse Gun Heavy EM Pulse Gun > --- INVENTORY -------- Subdweller Power Source Light Nuclear Core Light Treads Wheel Subdweller Monowheel Large Storage Unit Subdweller Optics Subdweller Optics Subdweller Optics Light Armor Plating Light Armor Plating Light Armor Plating Scrap Shield Self-contained Transmogrifier Heavy EM Pulse Gun EM Shotgun EM Shotgun EM Shotgun EM Shotgun Subdweller Beam Cannon Assault Rifle Assault Rifle Grenade Launcher [Rating: 26] Favorites ----------- Power Light Ion Engine Engine Light Ion Engine Propulsion Light Treads Treads Light Treads Leg Aluminum Leg Wheel Subdweller Monowheel Utility Huge Storage Unit Device X0-1V1's Piety Tracker Storage Huge Storage Unit Protection Light Armor Plating Weapon Heavy EM Pulse Gun Energy Gun Heavy EM Pulse Gun Ballistic Gun Assault Rifle Launcher Grenade Launcher Build | -11 -10 -10 ------- Run | Yrd Mat Sub Slots Evolved . | . . . Power . | . . . Propulsion . | . . . Utility . | . . . Weapon . | . . . Parts Attached 17 | 3 5 9 Power 2 | . . 2 Engine 2 | . . 2 Core . | . . . Reactor . | . . . Propulsion 5 | 2 . 3 Treads 4 | 2 . 2 Leg . | . . . Wheel 1 | . . 1 Hover . | . . . Flight . | . . . Utility 4 | . 3 1 Device 1 | . . 1 Storage 2 | . 2 . Processor . | . . . Hackware . | . . . Protection 1 | . 1 . Artifact . | . . . Weapon 6 | 1 2 3 Energy Gun 4 | . 2 2 Energy Cannon . | . . . Ballistic Gun 1 | 1 . . Ballistic Cannon . | . . . Launcher 1 | . . 1 Special Weapon . | . . . Impact Weapon . | . . . Slashing Weapon . | . . . Piercing Weapon . | . . . Special Melee Weapon . | . . . Unidentified Prototypes 1 | . . 1 Corrupted Parts 2 | . . 2 System Corruption 8 | . . 8 Parts Lost 9 | . . 9 Power 2 | . . 2 Propulsion 2 | . . 2 Utility . | . . . Weapon 5 | . . 5 Highest Loss Streak 5 | . . 5 To Critical Strikes . | . . . Average Backups 18 | 6 14 23 Power 2 | 1 2 2 Propulsion 2 | 4 2 3 Utility 6 | . 4 8 Weapon 6 | 1 4 8 Tool/Special . | . . . Unused Backups 30 | . 4 26 Power 4 | . 1 3 Propulsion 4 | . . 4 Utility 15 | . 3 12 Weapon 6 | . . 6 Tool/Special 1 | . . 1 Average Slot Usage (%) 97 | . 95 99 Engine 13 | . 14 13 Treads 28 | . 28 28 Device 6 | . . 13 Storage 13 | . 14 13 Protection 5 | . 9 . Energy Gun 23 | . 21 25 Ballistic Gun 3 | . 6 . Peak Build Rating 26 | 6 13 26 Average Rating 16 | 6 9 24 On Entrance 8 | 6 6 13 Avg Prop Armor Cover (%) 8 | . . 8 Naked Turns . | . . . Heaviest Build 92 | 12 92 92 Greatest Support 40 | 40 40 40 Greatest Overweight (x) 4 | . 2 4 Average Overweight (x) 1 | . 1 2 Largest Inventory Capacity 25 | 8 25 25 Average Capacity 24 | 8 24 25 Most Carried 25 | 6 22 25 Average Carried 19 | 4 14 24 Final Capacity 25 | 8 25 25 Final Carried 22 | 2 22 20 Class Distribution -------------------- 100% | Mutant Dominant Class ---------------- Mutant | -10/Materials Mutant | -10/Subcaves Resources | -11 -10 -10 ----------- Run | Yrd Mat Sub Matter Collected 402 | 189 91 122 Remotely . | . . . Salvage Created 824 | . 314 510 Parts 44 | . 13 31 Haulers Intercepted 2 | . 2 . Recyclers Shooed . | . . . Parts Field Recycled . | . . . Retrieved Matter . | . . . Parts Self-Destructed 12 | . . 12 Prevented . | . . . Parts Restored . | . . . Kills | -11 -10 -10 ------- Run | Yrd Mat Sub Combat Hostiles Destroyed 16 | . 2 14 Guns 10 | . 2 8 AOE 4 | . . 4 Classes Destroyed 8 | . 6 2 Worker 1 | . 1 . Hauler 2 | . 2 . Recycler 1 | . 1 . Mechanic 1 | . 1 . Operator 1 | . 1 . Swarmer 4 | . . 4 Grunt 2 | . 2 . Subdweller 10 | . . 10 Best Kill Streak 4 | . 2 4 Combat Bots Only 4 | . 1 4 Max Kills in Single Turn 2 | . 2 2 Gunslinging . | . . . Exploded 2 | . . 2 Melee . | . . . Uniques/NPCs Destroyed . | . . . Combat | -11 -10 -10 -------- Run | Yrd Mat Sub Hostile Shots Fired 132 | . 7 125 Missed 54 | . 3 51 Hits 78 | . 4 74 Projectile 78 | . 4 74 Critical Strikes 1 | . . 1 Damage Taken 1165 | . 80 1085 Core 253 | . . 253 Absorbed by Shields . | . . . Core Remaining (%) 100 | 100 . . Volleys Fired 96 | . 17 79 Largest 2 | . 2 2 Hottest 90 | . 90 90 Shots Fired 187 | . 34 153 Gun 182 | . 34 148 Cannon . | . . . Launcher 5 | . . 5 Special . | . . . Kinetic . | . . . Thermal . | . . . Explosive 5 | . . 5 Electromagnetic 182 | . 34 148 Robot Hit Streak 18 | . 10 18 Robot Miss Streak 2 | . 2 2 Penetration Max . | . . . Secondary Targets . | . . . Shots Hit Robots 78 | . 24 54 Core Hits 30 | . 8 22 Critical Kills . | . . . Critical Parts Destroyed . | . . . Critical Strikes 5 | . 3 2 Corrupt 5 | . 3 2 Melee Attacks . | . . . Impact . | . . . Slashing . | . . . Piercing . | . . . Sneak Attacks . | . . . Combat Hostiles . | . . . Follow-up Attacks . | . . . Damage Inflicted 1485 | . 503 982 Guns 1023 | . 388 635 Cannons . | . . . Explosions 431 | . 84 347 Melee . | . . . Ramming 31 | . 31 . Kinetic . | . . . Thermal 215 | . 84 131 Explosive 216 | . . 216 Electromagnetic 1023 | . 388 635 Impact . | . . . Slashing . | . . . Piercing . | . . . Highest Corruption 8 | . . 8 Average Corruption 6 | . . 6 Corruption Purged . | . . . Corruption Blocked . | . . . Effects 7 | . . 7 Message Errors 3 | . . 3 Heat Flow Errors 1 | . . 1 Data Loss (minor) 2 | . . 2 Weapon Failures 1 | . . 1 Overload Shots . | . . . Overflow Damage . | . . . Projectiles . | . . . Explosions . | . . . Melee . | . . . Knockbacks . | . . . Impact . | . . . Kinetic . | . . . Secondary . | . . . Self-Inflicted Damage 76 | . 36 40 Shots 2 | . 1 1 Rammed 3 | . 3 . Targets Rammed 4 | . 4 . Kicked . | . . . Crushed 1 | . 1 . Highest Temperature 269 | . 201 269 Average Temperature 73 | . 61 121 Received Heat Transfer 702 | . 24 678 Siege Activations . | . . . Martial Activations . | . . . Shielding Activations . | . . . Robots Disrupted . | . . . Combat Hostiles . | . . . Robots Corrupted 2 | . . 2 Combat Hostiles 2 | . . 2 Parts Fried 9 | . 4 5 Impact Corruptions . | . . . Robots Melted . | . . . Combat Hostiles . | . . . Parts Melted . | . . . Heat Transferred 150 | . 100 50 Parts Sabotaged . | . . . Parts Stolen . | . . . Parts Stripped . | . . . Power Chain Reactions 4 | . 2 2 Alert | -11 -10 -10 ------- Run | Yrd Mat Sub Maximum Alert Level . | . . . Low Security (%) 100 | 100 100 . Level 1 . | . . . Level 2 . | . . . Level 3 . | . . . Level 4 . | . . . Level 5 . | . . . High Security . | . . . Max Security . | . . . Peak Influence 35 | . 35 . Initial . | . . . Average 2 | . 2 . Influence Increases 240 | . 115 125 Destroy 0b10 Robot/C 120 | . 40 80 Destroy 0b10 Robot/NC 30 | . 30 . Destroy Leader 24 | . 24 . Successful Hack 17 | . 17 . Destroy Structure 4 | . 4 . Lose Combat Pursuer 45 | . . 45 Influence Decreases 171 | . 115 56 Time Decay 121 | . 115 6 Lost Part 50 | . . 50 Squads Dispatched 2 | . 2 . Investigation 1 | . 1 . Extermination . | . . . Reinforcement 1 | . 1 . Assault . | . . . Garrison . | . . . Intercept . | . . . Searches Triggered . | . . . Construction Impeded . | . . . Haulers Reinforced . | . . . Active Scanning Responses . | . . . Cargo Convoy Interrupts . | . . . Stealth | -11 -10 -10 --------- Run | Yrd Mat Sub Distress Signals 2 | . 2 . Communications Jammed . | . . . Distress Signals . | . . . Times Spotted 30 | . 13 17 Peak Tracking Total 4 | . 1 4 Tactical Retreats 1 | . . 1 Traps | -11 -10 -10 ------- Run | Yrd Mat Sub Traps Triggered 2 | . 1 1 Indirectly . | . . . Trap Hack Attempts . | . . . Triggered . | . . . Disarmed . | . . . Reprogrammed . | . . . Reused . | . . . Traps Extracted . | . . . Installed . | . . . Triggered . | . . . Machines | -11 -10 -10 ---------- Run | Yrd Mat Sub Machines Disabled 2 | . . 2 Max in Single Turn 2 | . . 2 Machines Repaired . | . . . Machines Dismantled . | . . . Machines Sabotaged . | . . . Overloaded Fab Kills . | . . . Hacking | -11 -10 -10 --------- Run | Yrd Mat Sub Machines Accessed 8 | . 7 1 Terminals 6 | . 6 . Fabricators . | . . . Repair Stations 1 | . 1 . Recycling Units . | . . . Scanalyzers . | . . . Garrison Access . | . . . Total Hacks 11 | . 10 1 Successful 7 | . 6 1 Failed 4 | . 4 . Catastrophic . | . . . Database Lockouts . | . . . Manual 8 | . 8 . Terminals 8 | . 8 . Fabricators . | . . . Repair Stations 2 | . 2 . Recycling Units . | . . . Scanalyzers . | . . . Garrison Access . | . . . Terminal Hacks 2 | . 1 1 Prototype ID Bank 1 | . 1 . Proto ID Catalog 1 | . . 1 Fabricator Hacks . | . . . Repair Station Hacks . | . . . Recycling Unit Hacks . | . . . Scanalyzer . | . . . Garrison Access Hacks . | . . . Unauthorized Hacks 5 | . 5 . Terminals 5 | . 5 . Skim 5 | . 5 . Fabricators . | . . . Repair Stations . | . . . Recycling Units . | . . . Scanalyzers . | . . . Garrison Access . | . . . Data Cores Recovered . | . . . Used . | . . . Hacking Detections 4 | . 4 . Full Trace Events 1 | . 1 . Feedback Events . | . . . Feedback Blocked . | . . . Robot Schematics Acquired . | . . . Robots Built . | . . . Authchips . | . . . Time . | . . . Total Robot Build Rating . | . . . Part Schematics Acquired . | . . . Parts Built . | . . . Authchips . | . . . Time . | . . . Total Part Build Rating . | . . . Part Studies Acquired . | . . . Parts Repaired . | . . . Time . | . . . Parts Recycled . | . . . Recycled Matter . | . . . Retrieved Matter . | . . . Retrieved Components . | . . . Parts Scanalyzed . | . . . Part Schematics Acquired . | . . . Parts Damaged . | . . . Bothacking | -11 -10 -10 ------------ Run | Yrd Mat Sub Used RIF Installer . | . . . Robots Hacked . | . . . Non-combat . | . . . Combat . | . . . Robot Hacks Applied . | . . . Relay Couplers Released . | . . . Fabnet Peak Effective % . | . . . Robots Rewired . | . . . Allies Hacked . | . . . Hacks Repelled . | . . . Allies | -11 -10 -10 -------- Run | Yrd Mat Sub Total Allies . | . . . Largest Group . | . . . Highest-Rated Group . | . . . Highest-Rated Ally . | . . . Total Orders . | . . . Ally Attacks . | . . . Total Damage . | . . . Kills . | . . . Allies Corrupted . | . . . Allies Melted . | . . . X0-1V1 Amusement Gains 6 | . 6 . Good Acts 5 | . . 5 Bad Acts 3 | . . 3 Intel | -11 -10 -10 ------- Run | Yrd Mat Sub Active Infowar (turns) . | . . . Robot Analysis Total . | . . . Derelict Logs Recovered 2 | . . 2 Drone Launches . | . . . Drone Recoveries . | . . . Exploration | -11 -10 -10 ------------- Run | Yrd Mat Sub Turns Passed 4519 | 7 2469 2043 Spaces Moved 1227 | 1 674 552 Core . | . . . Treads 1225 | 1 674 550 Legs . | . . . Wheels 2 | . . 2 Hover . | . . . Flight . | . . . Fastest Speed 150 | 160 160 150 Average Speed 310 | 160 303 319 Slowest Speed 320 | 160 320 320 Overloaded Moves . | . . . Propulsion Burnouts . | . . . Robots Hopped . | . . . Potential Cave-ins . | . . . Cave-ins Triggered . | . . . Exploration Rate (%) 44 | 2 94 36 Regions Visited 2 Branch Regions 1 Pre-discovered Areas 1 | . . 1 Known Exits Taken 1 | . 1 . Unknown Exits Taken 1 | 1 . . Scrap Searched 3 | . . 3 Spaces Dug . | . . . Terrain Destroyed 29 | . 4 25 Melee . | . . . Projectile . | . . . AOE 29 | . 4 25 Terrain Rammed . | . . . Walls Destroyed . | . . . Machines Disabled . | . . . Actions | -11 -10 -10 --------- Run | Yrd Mat Sub Total 1742 | 7 1054 681 Wait 336 | . 327 9 Move 1225 | . 673 552 Hop . | . . . Pick Up 40 | . 24 16 Fast Attach . | . . . Attach 10 | . 2 8 Detach 1 | . 1 . Swap 12 | 3 3 6 Drop 18 | 4 3 11 Fire 96 | . 17 79 Melee . | . . . Ram . | . . . Kick . | . . . Crush 4 | . 4 . Escape Stasis . | . . . Rewire . | . . . Trap . | . . . Miscellaneous . | . . . Route ------- -11/Scrapyard -10/Materials (discovered 6 exits: *Mat x3 / [*Min x2] / *Sub) -10/Subcaves (discovered 3 exits: Mat x2 / *Rec) History --------- Turn | Location | Event 8 | -11/Scrapyard | Discovered new exit (range 0) 8 | -11/Scrapyard | Entered Materials 9 | -10/Materials | Met a group of wandering Federalists 116 | -10/Materials | Discovered new exit (range 15) 314 | -10/Materials | Build established: Mutant 506 | -10/Materials | Discovered new exit (range 8) 860 | -10/Materials | Discovered new exit (range 7) 1204 | -10/Materials | Learned location of 2 exits from Subcaves 1247 | -10/Materials | Learned location of 2 exits from Mines 1281 | -10/Materials | Identified exit to Materials 1337 | -10/Materials | Identified exit to Subcaves 1337 | -10/Materials | Learned location of 1 exit from Materials 1360 | -10/Materials | Learned Materials stockpile data 2472 | -10/Materials | Prayed at D.C.S.S. Altar Unit 2477 | -10/Materials | Entered Subcaves 2478 | -10/Subcaves | Identified exit to Materials 2479 | -10/Subcaves | Identified exit to Recycling 2517 | -10/Subcaves | Learned 4 Materials zone layouts 2594 | -10/Subcaves | Disturbed a concealed Subdweller 2633 | -10/Subcaves | X0-1V1 sent hostile S-10 Pest (x3) 3099 | -10/Subcaves | Shifting Twisted Machinery released Mak. Power Source 3106 | -10/Subcaves | Shifting Twisted Machinery released Battle Cannon 3322 | -10/Subcaves | Learned location of Mines (-9) 3933 | -10/Subcaves | Visited 4L-MR0's lab 3969 | -10/Subcaves | Core integrity fell below 50% 4037 | -10/Subcaves | Found Prototype Device 4241 | -10/Subcaves | Propulsion slot count permanently improved by X0-1V1 (+1) 4365 | -10/Subcaves | Core integrity fell below 20% 4373 | -10/Subcaves | X0-1V1 activates XOMVISION 4395 | -10/Subcaves | A swath of the cavern ceiling suddenly collapsed 4520 | -10/Subcaves | Destroyed by Autobeam Turret with Autobeam Last Messages --------------- 04390_ System corrupted: Component data lost. 04395_ 12 Matter crushed. A swath of the cavern ceiling suddenly collapses. 04437_ UKUOS5XFK0:/H82 TIJX:>8 04466_ 9VSFKXTU LTE YG46F7/1Z=/WVX 04479_ S-10 Pest destroyed. 04482_ Grenade Launcher destroyed. 04484_ S-10 Pest destroyed. 04485_ System corrupted: Component data lost. 04489_ Flight Unit fries itself beyond repair. 04493_ The unstable cave ceiling collapses. 04494_ Flight Unit fries itself beyond repair. 04504_ System corrupted: Heat flow error (+257). 04508_ Hvy. EM Pulse Gun destroyed. 04516_ Lgt. Treads destroyed. 04518_ Hvy. EM Pulse Gun destroyed. 04519_ Acquired 2 matter. 04520_ X0-1V1 chuckles heartily! Map ----- +----------------------------------------------------+ | ????????????????#######""###?????????????????????? | | ?????????????????# %#""###???????????????????????? | | ?????????????????# ##"###???????????????????????? | | ??????????????#######""""#???????????????????????? | | ?????????????## ""##""#"#??????????????????????? | | ????????????## ##""### "#?????????????????????? | | ???## ###### ""##??? #?????????????????????? | | ??# ""#???###?????????????????????? | | ?? #"#??#"???????????????????????? | | ??# ####?#"????????????????????????? | | ???# ## "##?"#????????????????????????? | | ?????????## ## ## "##"#????????????????????????? | | ??????????##??#### """#?????????????????????????? | | ???????????###### "#?????????????????????????? | | ??????????## #?????????????????????????? | | ??????????# #?????????????????????????? | | ??????????# ##?????????????????????????? | | ??????????# #??????????????????????????? | | ??????????# ## ###????????????????????????? | | ????? ## ?# # ##???????????????????????? | | ???? =## #???????????????????????? | | ???????# % ##?????????? "??????????? | | ???????# % ######## "#?????????? | | ???????# ## % % t""??????????? | | ???????# ##?## % % >#????????? | | ??????? #?????# @ %% t""??????????? | | ???????# ??????# # ###### "#?????????? | | ???????????????# ###???????? "??????????? | | ???????????????# # ##???????????????????????? | | ???????????????# # ????????????????????????? | | ???????????????## # #???????????????????????? | | ???????????????# ### ???????????????????????? | | ??????????????# ??? #??????????????????????? | | ??????????????#### ??? #?????????????